bitfinex/quotes_ETHUSD_20250726
["timestamp","ask_amount","ask_price","bid_price","bid_amount"]
[1753545520429,5.992,3738.5,3738.4,2.18471977]
[1753545520728,5.992,3738.5,3738.4,4.37384115]
[1753545520924,0.002,3739.0,3738.6,0.7925]
[1753545521100,0.1356,3739.0,3738.5,0.9064]
[1753545521300,0.002,3739.0,3738.8,3.60075496]
[1753545521500,2.448,3738.9,3738.8,3.60075496]
[1753545521724,2.448,3738.9,3738.8,4.22830666]
[1753545521930,2.448,3738.9,3738.8,5.13470666]
[1753545524139,2.448,3738.9,3738.8,2.4600517]
[1753545524444,2.448,3738.9,3738.8,1.6989]
[1753545526445,0.002,3738.9,3738.8,1.6989]
[1753545526632,2.447,3738.9,3738.8,1.6989]
[1753545528648,2.997,3738.9,3738.8,0.7925]
[1753545529321,2.997,3738.9,3738.8,1.7181]
[1753545531055,0.552,3738.9,3738.8,1.7181]
[1753545531275,2.996,3738.9,3738.8,1.7181]
[1753545532503,0.552,3738.9,3738.8,1.7181]
[1753545532793,2.996,3738.9,3738.8,1.7181]
[1753545536487,0.552,3738.9,3738.8,1.7181]
[1753545536686,2.995,3738.9,3738.8,1.7181]
[1753545537477,0.552,3738.9,3738.8,0.7925]
[1753545537816,3.4703,3738.9,3738.6,2.67479031]
[1753545538115,2.994,3738.9,3738.6,3.60039031]
[1753545538314,0.552,3738.9,3738.7,2.67470733]
[1753545538524,2.442,3738.8,3738.7,3.12980733]
[1753545539031,2.442,3738.8,3738.7,3.60030733]
[1753545540633,2.442,3738.8,3738.7,0.9256]
[1753545540990,2.442,3738.8,3738.5,4.53381697]
[1753545541392,0.552,3738.9,3738.6,0.9256]
[1753545541596,2.441,3738.8,3738.6,0.9256]
[1753545542086,2.441,3738.8,3738.5,3.60821697]
[1753545542087,1.0263,3738.7,3738.5,0.7998]
[1753545545406,1.0263,3738.7,3738.5,3.47466839]
[1753545545639,0.55,3738.7,3738.5,0.7998]
[1753545547044,0.55,3738.7,3738.3,2.6749964]
[1753545547348,0.55,3738.3,3738.1,0.001]
[1753545547533,2.441,3738.2,3738.1,0.001]
[1753545548120,2.441,3738.2,3738.1,2.67615582]
[1753545550912,2.441,3738.2,3738.1,0.001]
[1753545552341,3.4592,3738.2,3738.1,0.001]
[1753545553240,2.991,3738.2,3738.1,0.001]
[1753545553441,3.9134,3738.2,3738.1,0.001]
[1753545553659,7.78983189,3738.2,3738.1,0.001]
[1753545554251,10.46491615,3738.2,3738.1,0.001]
[1753545554429,40.46491615,3738.2,3738.1,0.001]
[1753545556269,7.78983189,3738.2,3738.1,0.001]
[1753545556476,10.46491615,3738.2,3738.1,0.001]
[1753545556655,7.78983189,3738.2,3738.1,0.001]
[1753545557364,10.46491615,3738.2,3738.1,0.001]
[1753545558080,7.78983189,3738.2,3738.1,0.001]
[1753545558577,7.33563189,3738.2,3738.1,0.001]
[1753545559374,0.55,3738.0,3737.6,3.45493028]
[1753545559571,7.33563189,3738.2,3737.6,2.67545543]
[1753545559572,0.55,3737.8,3737.6,2.67545543]
[1753545559745,0.55,3737.8,3737.7,0.431]
[1753545559978,2.441,3737.8,3737.7,0.431]
[1753545560453,2.441,3737.8,3737.7,3.10644211]
[1753545561254,2.441,3737.8,3737.7,3.78001015]
[1753545561495,0.6836,3738.0,3737.9,2.67529896]
[1753545561682,3.1246,3738.0,3737.9,2.67529896]
[1753545562072,3.1246,3738.0,3737.9,3.57749896]
[1753545564013,0.8198,3738.7,3737.9,0.9022]
[1753545564305,0.55,3738.4,3738.3,2.67499596]
[1753545564765,0.6836,3738.4,3738.3,2.6750127]
[1753545564970,3.1336,3738.5,3738.3,3.1060127]
[1753545565173,2.441,3738.4,3738.3,3.1060127]
[1753545565376,5.991,3738.4,3738.3,3.1060127]
[1753545565899,5.991,3738.4,3738.3,3.8689127]
[1753545566198,5.991,3738.4,3738.3,4.3401127]
[1753545566395,3.55,3738.4,3738.3,4.3401127]
[1753545566605,2.441,3738.4,3738.3,5.05499904]
[1753545567372,3.6856,3738.8,3738.5,2.67484125]
[1753545567577,2.991,3738.7,3738.6,2.67476411]
[1753545568513,2.991,3738.7,3738.6,3.10576411]
[1753545569370,2.991,3738.7,3738.6,3.10579805]
[1753545570306,2.991,3738.7,3738.5,2.67486778]
[1753545570511,2.991,3738.7,3738.5,0.431]
[1753545570714,2.991,3738.7,3738.5,3.10584802]
[1753545572282,2.991,3738.7,3738.6,3.57699805]
[1753545572692,2.991,3738.7,3738.5,2.67485379]
[1753545573327,2.991,3738.7,3738.5,3.10585379]
[1753545574324,2.991,3738.7,3738.5,3.57705379]
[1753545577026,2.991,3738.7,3738.5,0.9022]
[1753545577527,2.991,3738.7,3738.5,3.57704694]
[1753545578124,0.55,3738.7,3738.5,3.57704694]
[1753545578330,2.441,3738.6,3738.5,3.57704694]
[1753545578528,0.1356,3738.8,3738.5,3.57704694]
[1753545578830,0.1356,3738.8,3738.7,3.5744265]
[1753545578831,0.002,3738.8,3738.7,3.5744265]
[1753545579405,0.002,3738.8,3738.7,4.4766265]
[1753545584661,0.002,3738.8,3738.7,4.0054265]
[1753545584824,0.002,3738.8,3738.7,4.4872265]
[1753545586654,0.002,3738.8,3738.7,3.5744265]
[1753545587231,0.002,3738.8,3738.7,4.0131265]
[1753545587558,0.002,3738.8,3738.7,5.40772384]
[1753545592057,1e-08,3739.0,3738.9,7.86945924]
[1753545592236,1e-08,3739.0,3738.9,10.30945924]
[1753545592436,1e-08,3739.0,3738.9,11.36355924]
[1753545599981,1e-08,3739.0,3738.9,14.36355924]
[1753545600180,1e-08,3739.0,3738.9,16.15866039]
[1753545605778,1e-08,3739.0,3738.9,13.71866039]
[1753545605978,1e-08,3739.0,3738.9,16.15866039]
[1753545606274,1e-08,3739.0,3738.9,5.43008458]
[1753545606587,0.93470001,3739.0,3738.9,5.24818343]
[1753545606788,1e-08,3739.0,3738.9,11.31235924]
[1753545608015,1e-08,3739.0,3738.9,10.39185924]
[1753545608317,1e-08,3739.0,3738.9,6.02378343]
[1753545608839,1e-08,3739.0,3738.9,3.58378343]
[1753545608986,0.93470001,3739.0,3738.9,5.24818343]
[1753545609187,1e-08,3739.0,3738.9,5.24818343]
[1753545609418,1e-08,3739.0,3738.9,11.26754308]
[1753545609586,1e-08,3739.0,3738.9,12.18804308]
[1753545610183,1e-08,3739.0,3738.9,11.26754308]
[1753545610395,1e-08,3739.0,3738.9,11.74934308]
[1753545610616,1e-08,3739.0,3738.9,12.18804308]
[1753545610923,1e-08,3739.0,3738.9,11.70624308]
[1753545611823,1e-08,3739.0,3738.9,11.26754308]
[1753545612025,1e-08,3739.0,3738.9,12.18804308]
[1753545612896,1e-08,3739.0,3738.9,15.18804308]
[1753545613097,1e-08,3739.0,3738.9,19.38804308]
[1753545614218,1e-08,3739.0,3738.9,22.20504308]
[1753545614423,0.4777,3740.0,3738.9,22.20504308]
[1753545614424,0.002,3740.3,3740.2,2.67365381]
[1753545614646,0.002,3740.3,3740.2,5.38201919]
[1753545614795,0.4797,3740.3,3740.2,5.38201919]
[1753545615002,0.4797,3740.3,3740.2,5.51561919]
[1753545615240,0.4797,3740.3,3740.2,5.71324902]
[1753545616508,0.9305,3740.3,3740.2,5.51561919]
[1753545617349,0.002,3741.4,3740.3,0.81893659]
[1753545617513,0.002,3741.4,3741.3,2.67286771]
[1753545618737,0.4797,3741.4,3741.3,2.67286771]
[1753545622355,0.002,3741.4,3741.3,7.49154352]
[1753545622710,0.002,3741.4,3741.3,8.72974352]
[1753545622914,0.002,3741.4,3741.3,10.1151173]
[1753545623212,0.002,3741.4,3741.3,9.6632173]
[1753545623414,0.002,3741.4,3741.3,10.1151173]
[1753545624520,1e-08,3741.4,3741.3,13.1151173]
[1753545627044,1e-08,3741.4,3741.3,8.29514149]
[1753545627208,1e-08,3741.4,3741.3,7.84454149]
[1753545627412,1e-08,3741.4,3741.3,8.42874149]
[1753545627640,1e-08,3741.4,3741.3,8.88064149]
[1753545627846,0.002,3742.2,3742.1,2.6722963]
[1753545628168,0.4797,3742.2,3742.1,2.93952593]
[1753545628335,0.9305,3742.2,3742.1,3.07312593]
[1753545632760,0.9305,3742.2,3742.1,3.26912412]
[1753545634147,0.4797,3742.2,3742.1,3.26912412]
[1753545635963,0.9305,3742.2,3742.1,3.26912412]
[1753545636659,0.4797,3742.2,3742.1,3.26912412]
[1753545639264,0.002,3742.2,3742.1,3.26912412]
[1753545640781,0.002,3742.2,3742.1,3.72102412]
[1753545640930,0.002,3742.2,3742.1,4.97392412]
[1753545641631,0.002,3742.2,3742.1,4.52202412]
[1753545641832,0.002,3742.2,3742.1,3.26912412]
[1753545643290,0.002,3742.2,3742.1,3.74222412]
[1753545643677,0.002,3742.2,3742.1,8.58939993]
[1753545649059,0.002,3742.2,3742.1,4.22132412]
[1753545649384,0.002,3742.2,3742.1,3.74822412]
[1753545649577,0.4928,3742.2,3742.1,3.26912412]
[1753545651302,0.002,3742.2,3742.1,3.26912412]
[1753545652208,0.4928,3742.2,3742.1,3.26912412]
[1753545652419,0.002,3742.2,3742.1,3.26912412]
[1753545653038,0.4928,3742.2,3742.1,3.26912412]
[1753545658191,0.002,3742.2,3742.1,3.26912412]
[1753545660310,0.002,3742.2,3742.1,4.99042412]
[1753545662140,0.002,3742.2,3742.1,3.26912412]
[1753545662355,0.4928,3742.2,3742.1,3.00189449]
[1753545662664,0.9507,3742.2,3742.1,3.00189449]
[1753545663826,0.9507,3742.2,3742.1,0.1336]
[1753545664033,1.7274,3742.2,3742.1,2.8058963]
[1753545665539,0.7787,3742.2,3742.1,2.8058963]
[1753545665738,1.2695,3742.2,3742.1,2.8058963]
[1753545666742,1.7274,3742.2,3742.1,2.8058963]
[1753545667798,1.7274,3742.2,3742.1,0.1336]
[1753545668033,1.7274,3742.2,3741.6,2.67364773]
[1753545668234,0.9487,3742.1,3741.8,0.1336]
[1753545668626,0.7767,3741.9,3741.8,0.1336]
[1753545669041,1.7254,3741.9,3741.6,0.001]
[1753545669203,0.7767,3741.9,3741.6,0.001]
[1753545669404,0.7767,3741.7,3741.6,0.001]
[1753545669599,3.2177,3741.7,3741.6,0.001]
[1753545669841,10.38898198,3741.7,3741.6,0.001]
[1753545670442,40.38898198,3741.7,3741.6,0.001]
[1753545676500,37.7164,3741.7,3741.6,0.001]
[1753545676634,7.7164,3741.7,3741.6,0.001]
[1753545677149,10.38898198,3741.7,3741.6,0.001]
[1753545677531,7.49008198,3741.7,3741.6,0.001]
[1753545677744,9.93008198,3741.7,3741.6,0.001]
[1753545678066,0.7767,3741.7,3741.6,0.001]
[1753545678373,3.2177,3741.7,3741.6,0.001]
[1753545678575,3.7677,3741.7,3741.6,0.001]
[1753545678778,4.2398,3741.7,3741.6,0.001]
[1753545679861,4.2398,3741.7,3741.6,2.67365341]
[1753545680178,4.2398,3741.7,3741.6,0.001]
[1753545681284,3.7677,3741.7,3741.6,0.001]
[1753545681786,4.2398,3741.7,3741.6,0.001]
[1753545683902,3.7677,3741.7,3741.6,0.001]
[1753545684067,2.991,3741.7,3741.6,0.001]
[1753545684266,2.99,3741.7,3741.6,0.001]
[1753545685602,3.4621,3741.7,3741.6,0.001]
[1753545686299,2.99,3741.7,3741.6,0.001]
[1753545686503,2.44,3741.7,3741.6,2.67363834]
[1753545686672,2.44,3741.7,3741.6,3.58103834]
[1753545687072,0.1336,3741.9,3741.7,2.67258198]
[1753545687378,0.4721,3742.7,3742.1,2.6722963]
[1753545687577,2.442,3742.2,3742.1,2.6722963]
[1753545687800,2.442,3742.2,3742.1,3.5796963]
[1753545688006,0.002,3742.2,3742.1,3.5796963]
[1753545688186,2.442,3742.2,3742.1,0.9074]
[1753545688529,2.9141,3742.2,3742.0,2.6723566]
[1753545688723,0.4721,3742.1,3741.8,2.80609648]
[1753545688924,0.4721,3742.0,3741.8,2.67249648]
[1753545689222,2.5756,3742.2,3741.8,2.67249648]
[1753545689525,2.44,3742.1,3741.9,2.67243913]
[1753545689945,2.44,3742.1,3741.9,2.67242383]
[1753545690224,2.44,3742.0,3741.9,2.67242383]
[1753545693430,2.44,3742.0,3741.7,0.1336]
[1753545693617,2.44,3742.0,3741.8,2.67249657]
[1753545693931,2.44,3742.0,3741.7,2.80617612]
[1753545694529,2.9121,3742.0,3741.7,2.80617612]
[1753545694830,2.9121,3742.0,3741.8,2.67250158]
[1753545695132,2.44,3742.0,3741.8,2.67250158]
[1753545695722,2.44,3742.0,3741.9,2.67243913]
[1753545696229,2.44,3742.0,3741.8,0.43]
[1753545696230,2.442,3742.0,3741.8,0.43]
[1753545696594,2.442,3742.0,3741.8,3.10245563]
[1753545697019,2.442,3742.0,3741.7,2.8061699]
[1753545697219,2.442,3742.0,3741.7,3.2361699]
[1753545697614,2.442,3742.0,3741.7,3.7135699]
[1753545698041,2.442,3742.0,3741.8,2.67249816]
[1753545698404,2.442,3742.0,3741.8,3.10249816]
[1753545698828,2.442,3742.0,3741.9,2.67243913]
[1753545699616,2.442,3742.0,3741.9,3.10243913]
[1753545700537,2.442,3742.0,3741.9,0.43]
[1753545701037,2.442,3742.0,3741.8,3.14989228]
[1753545701205,2.442,3742.0,3741.8,3.57989228]
[1753545701730,2.442,3742.0,3741.9,2.67243913]
[1753545702339,2.441,3742.0,3741.6,0.001]
[1753545702638,2.441,3742.0,3741.7,2.67253003]
[1753545702639,0.4841,3741.9,3741.7,2.67253003]
[1753545702817,0.4841,3741.9,3741.7,2.80613003]
[1753545703223,0.4841,3741.9,3741.8,2.67251055]
[1753545704246,0.4841,3741.9,3741.7,2.80616669]
[1753545704443,0.4841,3741.9,3741.7,0.1336]
[1753545704612,2.441,3742.0,3741.7,2.80617953]
[1753545704812,0.4841,3741.9,3741.6,2.67363326]
[1753545705013,2.8862,3742.0,3741.6,2.80723326]
[1753545705214,0.4841,3741.8,3741.6,2.80723326]
[1753545706050,0.4841,3741.8,3741.6,0.1346]
[1753545706449,0.4841,3741.8,3741.6,2.80724491]
[1753545706645,0.4841,3741.8,3741.7,2.67258198]
[1753545706947,2.441,3742.0,3741.7,2.67258198]
[1753545707158,2.9251,3742.0,3741.7,2.67258198]
[1753545707368,0.4841,3741.9,3741.7,2.67258198]
[1753545707714,0.4841,3741.9,3741.6,0.1346]
[1753545707928,0.4841,3741.8,3741.6,0.001]
[1753545708380,0.4841,3741.7,3741.6,0.001]
[1753545710229,0.4841,3741.7,3741.6,2.67365341]
[1753545710930,0.55,3741.9,3741.6,0.001]
[1753545711132,0.4841,3741.7,3741.6,0.001]
[1753545711735,2.439,3741.7,3741.6,0.4553]
[1753545711935,2.439,3741.7,3741.6,0.9385]
[1753545712559,0.1336,3741.9,3741.6,0.9385]
[1753545712858,2.439,3741.8,3741.7,0.9375]
[1753545714480,2.439,3741.8,3741.7,3.61008198]
[1753545714852,2.439,3741.8,3741.7,0.9375]
[1753545715350,2.439,3741.8,3741.6,2.67364148]
[1753545715351,4.328,3741.7,3741.6,0.001]
[1753545715561,3.76257638,3741.8,3741.6,0.001]
[1753545715562,0.36087,3741.8,3741.6,0.001]
[1753545715740,2.445,3741.7,3741.6,0.001]
[1753545715937,2.445,3741.7,3741.6,0.4553]
[1753545716672,2.445,3741.7,3741.6,0.001]
[1753545716878,2.445,3741.7,3741.6,3.61115341]
[1753545717040,3.0,3741.9,3741.6,3.61115341]
[1753545717368,2.446,3741.8,3741.7,0.9375]
[1753545717536,2.446,3741.8,3741.7,3.61008198]
[1753545718577,3.002,3742.0,3741.7,3.61008198]
[1753545718886,2.445,3741.9,3741.7,3.61008198]
[1753545719178,2.445,3741.8,3741.7,3.61008198]
[1753545719491,0.002,3742.0,3741.9,2.67243913]
[1753545719781,0.002,3742.0,3741.9,3.49453913]
[1753545720147,0.002,3742.0,3741.9,4.43203913]
[1753545720549,0.002,3742.0,3741.9,8.80011494]
[1753545722347,1e-08,3742.0,3741.9,8.80011494]
[1753545722669,1e-08,3742.0,3741.9,10.26250641]
[1753545725389,1e-08,3742.0,3741.9,12.84310641]
[1753545728967,1e-08,3742.2,3742.1,2.6722963]
[1753545729288,1e-08,3742.2,3742.1,5.8845963]
[1753545729486,1e-08,3742.2,3742.1,8.50155657]
[1753545730061,1e-08,3742.2,3742.1,8.69783736]
[1753545732217,1e-08,3742.2,3742.1,5.31433736]
[1753545732368,1e-08,3742.2,3742.1,8.71113736]
[1753545732781,1e-08,3742.2,3742.1,13.07921317]
[1753545733619,1e-08,3742.2,3742.1,16.07921317]
[1753545735623,1e-08,3742.2,3742.1,15.59071317]
[1753545735812,1e-08,3742.2,3742.1,16.07921317]
[1753545737395,0.002,3742.8,3742.7,2.6718679]
[1753545737596,0.002,3742.8,3742.7,10.98322642]
[1753545737925,0.002,3742.8,3742.7,11.93502642]
[1753545739147,0.002,3742.8,3742.7,11.44652642]
[1753545739425,0.002,3742.8,3742.7,11.93502642]
[1753545741801,1e-08,3742.8,3742.7,11.93502642]
[1753545742004,1e-08,3743.0,3742.9,2.67172513]
[1753545742228,1e-08,3743.0,3742.9,7.32356315]
[1753545742430,1e-08,3743.0,3742.9,8.40896315]
[1753545743440,1e-08,3743.0,3742.9,7.45716315]
[1753545743616,1e-08,3743.0,3742.9,11.40896315]
[1753545745035,1e-08,3743.0,3742.9,8.96596315]
[1753545745216,1e-08,3743.0,3742.9,11.40896315]
[1753545747607,0.002,3743.5,3743.1,2.67158237]
[1753545747847,0.002,3743.5,3743.1,15.19896238]
[1753545748144,0.002,3743.5,3743.1,16.28436238]
[1753545752014,0.002,3743.7,3743.6,3.49202555]
[1753545752210,0.002,3743.7,3743.6,10.30110136]
[1753545752416,0.7247,3744.6,3744.5,2.67058352]
[1753545752611,0.4752,3745.5,3744.6,0.8208]
[1753545752824,0.4752,3745.2,3745.1,2.67015567]
[1753545753015,0.4752,3745.2,3745.1,5.11415567]
[1753545753214,0.9125,3745.2,3745.1,5.11415567]
[1753545754157,0.55,3746.4,3745.2,0.803]
[1753545754158,0.7761,3746.4,3745.2,0.803]
[1753545754356,0.7761,3745.7,3745.3,2.447]
[1753545754653,0.9125,3745.6,3744.4,3.47358352]
[1753545754825,0.7761,3745.4,3744.9,2.67024495]
[1753545755016,0.9125,3745.3,3744.8,2.448]
[1753545755216,0.7761,3745.1,3744.0,2.67094017]
[1753545755467,0.9125,3745.0,3744.7,2.67038112]
[1753545755665,0.7761,3745.1,3744.7,2.67038112]
[1753545755856,0.9125,3744.9,3744.7,2.67038112]
[1753545756032,0.9125,3744.8,3744.7,2.67038112]
[1753545756231,0.9125,3744.8,3744.6,2.67049543]
[1753545756464,0.7761,3745.1,3744.8,2.67034746]
[1753545756871,0.7761,3745.1,3744.6,2.6705122]
[1753545757079,0.9125,3745.0,3744.6,2.6705122]
[1753545757244,0.7761,3745.1,3744.8,2.6703163]
[1753545757428,0.9125,3744.9,3744.8,2.6703163]
[1753545757734,0.4752,3744.9,3744.5,2.448]
[1753545757951,0.7761,3745.1,3744.6,2.6705122]
[1753545757952,0.9125,3744.8,3744.6,2.6705122]
[1753545758152,0.7761,3745.1,3744.7,2.6704349]
[1753545758558,0.7761,3745.1,3744.6,2.6704947]
[1753545758779,0.7761,3745.1,3743.6,0.7679]
[1753545758780,0.7797,3744.9,3743.6,0.7679]
[1753545758979,3.0,3746.1,3742.6,0.802275]
[1753545758980,1.3297,3743.4,3742.6,0.802275]
[1753545759232,0.7797,3742.8,3741.6,0.001]
[1753545759371,0.03339834,3742.7,3741.6,2.67359455]
[1753545759698,3.61777159,3742.7,3741.8,2.67250583]
[1753545759894,0.94589834,3742.7,3741.8,2.67250583]
[1753545760109,0.9125,3742.6,3742.0,2.67236304]
[1753545760276,0.03339834,3742.7,3742.0,2.67236304]
[1753545760477,0.9125,3742.5,3742.1,0.001]
[1753545760992,0.9125,3742.4,3742.1,0.001]
[1753545761172,0.9125,3742.4,3742.1,2.67329276]
[1753545761373,0.9125,3742.3,3742.1,0.001]
[1753545761880,0.9125,3742.2,3742.1,2.6732963]
[1753545762463,3.81309745,3742.8,3742.7,2.6718679]
[1753545762464,0.7797,3742.8,3742.7,2.6718679]
[1753545762781,1.6788,3742.8,3742.7,2.6718679]
[1753545763010,1.6788,3742.8,3742.4,2.80567573]
[1753545763198,0.4281,3742.7,3742.6,2.67193235]
[1753545763371,0.8991,3742.7,3742.5,2.67200351]
[1753545763565,0.471,3742.7,3742.5,2.67200351]
[1753545763760,0.8991,3742.6,3742.5,2.67200351]
[1753545765385,3.3991,3742.3,3742.1,0.001]
[1753545765589,0.8991,3742.2,3742.1,0.001]
[1753545767206,1.58830328,3742.2,3742.1,0.001]
[1753545767508,5.63142817,3742.2,3742.1,0.001]
[1753545767706,8.63142817,3742.2,3742.1,0.001]
[1753545769018,5.95920328,3742.2,3742.1,0.001]
[1753545771219,7.767,3742.2,3742.1,0.001]
[1753545772276,5.27,3742.2,3742.1,0.001]
[1753545772613,3.3169,3742.2,3742.1,0.001]
[1753545772808,4.766,3742.2,3742.1,0.001]
[1753545773028,4.92759066,3742.2,3742.1,0.001]
[1753545775123,4.96099347,3742.2,3742.1,0.001]
[1753545775325,7.63321836,3742.2,3742.1,0.001]
[1753545775531,10.59981555,3742.2,3742.1,0.001]
[1753545777499,40.59981555,3742.2,3742.1,0.001]
[1753545778601,40.59881555,3742.2,3742.1,0.001]
[1753545782414,3.22258198,3741.7,3741.6,0.001]
[1753545782623,39.52078925,3741.7,3741.6,0.001]
[1753545782820,40.04908198,3741.7,3741.6,0.001]
[1753545783019,40.52008198,3741.7,3741.6,0.001]
[1753545783214,40.52798369,3741.7,3741.6,1e-08]
[1753545783418,40.52008198,3741.7,3741.6,1e-08]
[1753545784140,34.03559644,3740.7,3740.2,0.001]
[1753545784301,39.52859644,3740.7,3740.2,0.001]
[1753545784499,40.56129644,3740.7,3740.2,0.001]
[1753545785601,3.22358233,3740.3,3740.2,0.001]
[1753545785808,5.85218233,3740.3,3740.2,0.001]
[1753545786242,7.13548233,3740.3,3740.2,0.001]
[1753545786406,37.13548233,3740.3,3740.2,0.001]
[1753545786808,7.13548233,3740.3,3740.2,0.001]
[1753545787110,37.13548233,3740.3,3740.2,0.001]
[1753545787454,36.66448233,3740.3,3740.2,0.001]
[1753545787752,33.9909,3740.3,3740.2,0.001]
[1753545787908,36.66448233,3740.3,3740.2,0.001]
[1753545788244,37.13548233,3740.3,3740.2,0.001]
[1753545790263,37.56358233,3740.3,3740.2,0.001]
[1753545790464,37.13548233,3740.3,3740.2,0.001]
[1753545791149,33.9909,3740.3,3740.2,0.001]
[1753545791463,36.66448233,3740.3,3740.2,0.001]
[1753545791770,7.13548233,3740.3,3740.2,0.001]
[1753545791956,37.13548233,3740.3,3740.2,0.001]
[1753545792268,37.62638233,3740.3,3740.2,0.001]
[1753545792567,40.62638233,3740.3,3740.2,0.001]
[1753545792748,10.62638233,3740.3,3740.2,0.001]
[1753545792948,40.62638233,3740.3,3740.2,0.001]
[1753545794032,40.15388233,3740.3,3740.2,0.001]
[1753545794248,39.66448233,3740.3,3740.2,0.001]
[1753545794528,36.9909,3740.3,3740.2,0.001]
[1753545794732,36.9909,3740.3,3740.2,0.9283]
[1753545794733,6.9909,3740.3,3740.2,0.9283]
[1753545795368,6.9909,3740.3,3740.2,0.001]
[1753545796726,36.9909,3740.3,3740.2,0.001]
[1753545797268,40.62638233,3740.3,3740.2,0.001]
[1753545799566,40.15388233,3740.3,3740.2,0.001]
[1753545799729,10.62638233,3740.3,3740.2,0.001]
[1753545799927,40.62638233,3740.3,3740.2,0.001]
[1753545806050,40.62638233,3740.3,3740.2,1e-08]
[1753545806255,36.99055381,3740.2,3740.1,0.001]
[1753545806788,37.95245381,3740.2,3740.1,0.001]
[1753545807682,35.2788,3740.2,3739.4,0.001]
[1753545807884,37.12465429,3739.5,3739.4,0.001]
[1753545808051,39.60965429,3739.5,3739.4,0.001]
[1753545808258,40.09905429,3739.5,3739.4,0.001]
[1753545808775,39.60965429,3739.5,3739.4,0.001]
[1753545810261,40.09905429,3739.5,3739.4,0.001]
[1753545810985,40.57155429,3739.5,3739.4,0.001]
[1753545811865,44.42555429,3739.5,3739.4,0.001]
[1753545812791,43.95305429,3739.5,3739.4,0.001]
[1753545812956,44.42555429,3739.5,3739.4,0.001]
[1753545815280,44.42555429,3739.5,3739.4,1e-08]
[1753545815859,14.42555429,3739.5,3739.4,1e-08]
[1753545816064,44.42555429,3739.5,3739.4,1e-08]
[1753545816302,44.42555429,3739.5,3738.7,0.001]
[1753545816303,33.98745496,3738.8,3738.7,0.001]
[1753545816468,39.60205496,3738.8,3738.7,0.001]
[1753545816668,40.09145496,3738.8,3738.7,0.001]
[1753545816864,10.09145496,3738.8,3738.7,0.001]
[1753545817168,40.56395496,3738.8,3738.7,0.001]
[1753545817577,40.22187609,3738.8,3738.7,0.001]
[1753545818078,40.69437609,3738.8,3738.7,0.001]
[1753545818463,40.69437609,3738.8,3738.7,1e-08]
[1753545821395,40.22187609,3738.8,3738.7,1e-08]
[1753545822006,2.80825496,3738.8,3738.7,1e-08]
[1753545822169,32.80825496,3738.8,3738.7,0.92730001]
[1753545822369,30.1336,3738.8,3738.7,0.92730001]
[1753545822568,5.29025496,3738.8,3738.7,0.92730001]
[1753545822790,0.1336,3738.8,3738.7,0.92730001]
[1753545822991,2.6156,3738.8,3738.7,0.92730001]
[1753545823880,3.1656,3738.8,3738.7,0.92730001]
[1753545824201,2.6156,3738.8,3738.7,1.74850001]
[1753545824504,3.1656,3738.8,3738.7,1.74850001]
[1753545825017,8.87368814,3738.8,3738.7,0.92730001]
[1753545825179,38.84025496,3738.8,3738.7,0.92730001]
[1753545825375,6.1656,3738.8,3738.7,0.92730001]
[1753545829111,8.84025496,3738.8,3738.7,0.92730001]
[1753545831193,38.84025496,3738.8,3738.7,0.92730001]
[1753545833154,39.31905496,3738.8,3738.7,1e-08]
[1753545833282,39.78805496,3738.8,3738.7,1e-08]
[1753545833481,40.56655496,3738.8,3738.7,1e-08]
[1753545834423,10.56655496,3738.8,3738.7,1e-08]
[1753545834807,40.56655496,3738.8,3738.7,1e-08]
[1753545836122,39.61375496,3738.8,3738.7,1e-08]
[1753545837036,40.09255496,3738.8,3738.7,1e-08]
[1753545838111,40.56155496,3738.8,3738.7,1e-08]
[1753545839799,36.2247265,3738.7,3738.6,1e-08]
[1753545839999,37.42288714,3738.7,3738.6,1e-08]
[1753545841008,36.7035265,3738.7,3738.6,1e-08]
[1753545843102,37.1725265,3738.7,3738.6,1e-08]
[1753545845737,36.7035265,3738.7,3738.6,1e-08]
[1753545846104,6.7035265,3738.7,3738.6,1e-08]
[1753545846321,37.1725265,3738.7,3738.6,1e-08]
[1753545846944,7.42290009,3738.7,3738.6,1e-08]
[1753545847161,38.20380009,3738.7,3738.6,1e-08]
[1753545847948,44.53480009,3738.7,3738.6,1e-08]
[1753545850259,36.22508426,3738.2,3738.1,1e-08]
[1753545850570,39.64198426,3738.2,3738.1,1e-08]
[1753545850915,40.12078426,3738.2,3738.1,1e-08]
[1753545852049,37.64678426,3738.2,3738.1,1e-08]
[1753545852249,40.11978426,3738.2,3738.1,1e-08]
[1753545853260,10.11978426,3738.2,3738.1,1e-08]
[1753545853426,40.11978426,3738.2,3738.1,1e-08]
[1753545854260,10.11978426,3738.2,3738.1,1e-08]
[1753545854556,40.11978426,3738.2,3738.1,1e-08]
[1753545861473,40.37031469,3738.2,3738.1,1e-08]
[1753545862167,39.56101469,3738.2,3738.1,1e-08]
[1753545862373,39.31048426,3738.2,3738.1,1e-08]
[1753545862562,39.5611074,3738.2,3738.1,1e-08]
[1753545863190,39.31048426,3738.2,3738.1,1e-08]
[1753545863339,39.56115095,3738.2,3738.1,1e-08]
[1753545863772,39.31048426,3738.2,3738.1,1e-08]
[1753545864486,38.83168426,3738.2,3738.1,1e-08]
[1753545866065,3.22544211,3737.7,3737.6,0.74707071]
[1753545866368,8.69244211,3737.7,3737.6,0.74707071]
[1753545866572,8.82604211,3737.7,3737.6,0.74707071]
[1753545867163,38.82604211,3737.7,3737.6,0.74707071]
[1753545869490,6.22558528,3737.5,3737.4,0.001]